Cogmind - Beta 13 @@@ ROGUE MODE // 2024.03.22 @ 13:26:04 Player: most_lamentable Result: Destroyed by S-27 Virus with Autogun Performance ------------- Evolutions (3) 1500 Regions Visited (5) 1000 Robots Destroyed (52) 260 Value Destroyed (2013) 2013 Prototype IDs (0) 0 Alien Tech Used (0) 0 Bonus (48) 48 TOTAL SCORE: 4821 Bonus ------- High Alert Combat Kills 48 Cogmind --------- Core Integrity 0/700 Matter 300/300 Energy 98/100 System Corruption 9% Temperature Cool (0) Movement Core (50) Location -7/Lower Caves Parts ------- > --- POWER (2) -------- (None) > --- PROPULSION (4) --- (None) > --- UTILITY (5) ------ (None) > --- WEAPON (2) ------- Makeshift Hammer > --- INVENTORY (5) ---- Terrain Scan Processor Core Analyzer Transmission Jammer Datajack Axe Peak State ------------ > --- POWER ------------ Light Nuclear Core > --- PROPULSION ------- Improved Medium Treads Improved Aluminum Leg Improved Aluminum Leg > --- UTILITY ---------- Makeshift Salvage Targeting Computer Makeshift Salvage Targeting Computer Force Booster Medium Reflective Plating System Shield > --- WEAPON ----------- Magnetic Acceleration Cannon Makeshift Hammer > --- INVENTORY -------- Terrain Scan Processor Core Analyzer Transmission Jammer Datajack Axe [Rating: 41] Favorites ----------- Power Light Nuclear Core Engine Ion Engine Power Core Light Nuclear Core Propulsion Improved Aluminum Leg Treads Improved Medium Treads Leg Improved Aluminum Leg Utility Small Storage Unit Device Force Booster Storage Small Storage Unit Processor Makeshift Salvage Targeting Computer Hackware System Shield Protection Hardened Medium Armor Plating Weapon Axe Energy Gun EM Pulse Gun Energy Cannon Particle Cannon Ballistic Gun Assault Rifle Ballistic Cannon Magnetic Acceleration Cannon Launcher Rocket Launcher Impact Weapon Makeshift Hammer Slashing Weapon Axe Build | -11 -10 -9 -8 -7 -7 ------- Run | Yrd Mat Mat Mat Fac Low Slots Evolved 6 | . . 2 2 2 . Power 1 | . . . 1 . . Propulsion 2 | . . 2 . . . Utility 3 | . . . 1 2 . Weapon . | . . . . . . Parts Attached 62 | 5 6 11 19 7 14 Power 11 | . 2 1 6 . 2 Engine 3 | . 2 1 . . . Core 8 | . . . 6 . 2 Reactor . | . . . . . . Propulsion 25 | 2 1 8 5 3 6 Treads 1 | . . . . . 1 Leg 24 | 2 1 8 5 3 5 Wheel . | . . . . . . Hover . | . . . . . . Flight . | . . . . . . Utility 13 | 1 2 . 2 4 4 Device 4 | . 1 . . 3 . Storage 1 | 1 . . . . . Processor 2 | . . . . . 2 Hackware 3 | . . . 2 . 1 Protection 3 | . 1 . . 1 1 Artifact . | . . . . . . Weapon 13 | 2 1 2 6 . 2 Energy Gun 3 | . 1 . 2 . . Energy Cannon 2 | . . 1 1 . . Ballistic Gun 3 | 2 . 1 . . . Ballistic Cannon 1 | . . . . . 1 Launcher 1 | . . . 1 . . Special Weapon . | . . . . . . Impact Weapon 1 | . . . . . 1 Slashing Weapon 2 | . . . 2 . . Piercing Weapon . | . . . . . . Special Melee Weapon . | . . . . . . Unidentified Prototypes . | . . . . . . Parts Lost 35 | . . . 13 . 22 Power 5 | . . . 2 . 3 Propulsion 14 | . . . 6 . 8 Utility 11 | . . . 2 . 9 Weapon 5 | . . . 3 . 2 Highest Loss Streak 10 | . . . 4 . 10 To Critical Strikes 1 | . . . . . 1 Average Slot Usage (%) 90 | . 91 100 74 97 93 Engine 1 | . 9 11 1 . . Core 11 | . . . 12 15 13 Leg 27 | . 28 44 21 29 26 Device 9 | . 1 11 . 13 13 Storage 7 | . 14 11 9 7 5 Hackware 7 | . . . 12 7 7 Protection 4 | . 8 . . 6 5 Energy Cannon 1 | . . 9 1 . . Ballistic Gun 2 | . 21 11 . . . Slashing Weapon 11 | . . . 11 15 13 Naked Turns . | . . . . . . Heaviest Build 39 | 8 15 20 27 39 39 Greatest Support 58 | 20 20 46 46 56 58 Greatest Overweight (x) 5 | . . . 3 . 5 Average Overweight (x) . | . . . . . . Largest Inventory Capacity 8 | 8 8 8 8 8 8 Average Capacity 7 | 7 8 8 8 8 7 Most Carried 8 | 8 8 8 8 8 8 Average Carried 7 | 4 7 7 6 7 7 Final Capacity 8 | 8 8 8 8 8 5 Final Carried 8 | 7 8 8 8 8 5 Class Distribution -------------------- 50% | Gladiator 33% | Mutant 9% | Hacker-Mutant 4% | Hacker-Gladiator Dominant Class ---------------- Mutant | -10/Materials Mutant | -9/Materials Mutant | -8/Materials Gladiator | -7/Factory Gladiator | -7/Lower Caves Resources | -11 -10 -9 -8 -7 -7 ----------- Run | Yrd Mat Mat Mat Fac Low Matter Collected 1066 | 166 188 192 304 . 216 Remotely . | . . . . . . Salvage Created 1922 | . 190 268 712 . 752 Parts 104 | . 11 23 35 . 35 Haulers Intercepted . | . . . . . . Recyclers Shooed 1 | . . . 1 . . Parts Field Recycled . | . . . . . . Retrieved Matter . | . . . . . . Parts Self-Destructed 27 | . . . . . 27 Prevented 6 | . . . . . 6 Kills | -11 -10 -9 -8 -7 -7 ------- Run | Yrd Mat Mat Mat Fac Low Combat Hostiles Destroyed 50 | . 4 8 22 . 16 Melee 20 | . . . 8 . 12 Guns 11 | . 4 4 3 . . Cannons 5 | . . 4 . . 1 AOE 12 | . . . 11 . 1 Classes Destroyed 10 | . 1 4 4 . 1 Operator 1 | . . 1 . . . Watcher 1 | . . 1 . . . Swarmer 13 | . . 4 3 . 6 Grunt 16 | . 4 2 9 . 1 Brawler 4 | . . . 1 . 3 Duelist 3 | . . . 1 . 2 Sentry 9 | . . 2 5 . 2 Specialist 2 | . . . 2 . . Hunter 2 | . . . 1 . 1 Behemoth 1 | . . . . . 1 Best Kill Streak 7 | . 2 4 6 . 7 Combat Bots Only 7 | . 2 4 6 . 7 Max Kills in Single Turn 1 | . 1 1 1 . 1 Gunslinging . | . . . . . . Exploded 1 | . . . 1 . 1 Melee 1 | . . . 1 . 1 Uniques/NPCs Destroyed . | . . . . . . Combat | -11 -10 -9 -8 -7 -7 -------- Run | Yrd Mat Mat Mat Fac Low Hostile Shots Fired 463 | . 19 39 181 9 215 Missed 141 | . 1 13 66 4 57 Damage Taken 4947 | . 227 255 1710 42 2713 Core 1248 | . 43 15 485 . 705 Absorbed by Shields . | . . . . . . Redirected to Shielding 6 | . 6 . . . . Ignored by Resistances 20 | . . . . . 20 Core Remaining (%) 72 | 100 82 96 11 . . Volleys Fired 74 | . 15 19 36 . 4 Largest 2 | . 2 2 2 . 1 Hottest 124 | . 60 91 124 . 53 Shots Fired 114 | . 30 38 42 . 4 Gun 68 | . 30 20 18 . . Cannon 29 | . . 18 7 . 4 Launcher 17 | . . . 17 . . Special . | . . . . . . Kinetic 50 | . 27 19 . . 4 Thermal 43 | . . 18 25 . . Explosive 17 | . . . 17 . . Electromagnetic 4 | . 3 1 . . . Robot Hit Streak 8 | . 6 6 8 . 1 Robot Miss Streak 4 | . 2 2 4 . 3 Penetration Max . | . . . . . . Secondary Targets 1 | . 1 . . . . Max Gunslinging Chain 1 | . 1 . . . . Shots Hit Robots 128 | . 18 21 43 . 46 Core Hits 80 | . 9 12 40 . 19 Critical Kills 2 | . . . . . 2 Critical Parts Destroyed 2 | . . . . . 2 Critical Strikes 10 | . . . 2 . 8 Burn 1 | . . . 1 . . Smash 4 | . . . . . 4 Sever 5 | . . . 1 . 4 Melee Attacks 99 | . . . 25 . 74 Impact 37 | . . . . . 37 Slashing 62 | . . . 25 . 37 Piercing . | . . . . . . Sneak Attacks 2 | . . . . . 2 Combat Hostiles 2 | . . . . . 2 Follow-up Attacks 5 | . . . 1 . 4 Damage Inflicted 4433 | . 198 368 2103 . 1764 Guns 495 | . 198 184 113 . . Cannons 302 | . . 184 83 . 35 Explosions 1254 | . . . 1254 . . Melee 2374 | . . . 645 . 1729 Ramming 8 | . . . 8 . . Kinetic 386 | . 183 168 . . 35 Thermal 380 | . . 184 196 . . Explosive 1254 | . . . 1254 . . Electromagnetic 31 | . 15 16 . . . Impact 680 | . . . . . 680 Slashing 1694 | . . . 645 . 1049 Piercing . | . . . . . . Highest Corruption 9 | . . . 2 . 9 Average Corruption 8 | . . . 2 . 8 Corruption Purged . | . . . . . . Corruption Blocked . | . . . . . . Effects 5 | . . . . . 5 Message Errors 1 | . . . . . 1 Matter Fused 1 | . . . . . 1 Heat Flow Errors 2 | . . . . . 2 Energy Discharges 1 | . . . . . 1 Overload Shots . | . . . . . . Overflow Damage 160 | . . . 18 . 142 Projectiles . | . . . . . . Explosions 15 | . . . 15 . . Melee 145 | . . . 3 . 142 Knockbacks 1 | . . . . . 1 Impact 1 | . . . . . 1 Kinetic . | . . . . . . Secondary . | . . . . . . Self-Inflicted Damage 85 | . . . 85 . . Shots 3 | . . . 3 . . Rammed . | . . . . . . Targets Rammed 1 | . . . 1 . . Kicked 1 | . . . 1 . . Crushed . | . . . . . . Highest Temperature 214 | . 12 126 126 8 214 Average Temperature 42 | . 6 47 38 8 92 Received Heat Transfer 1029 | . 129 60 648 18 174 Siege Activations . | . . . . . . Robots Corrupted . | . . . . . . Combat Hostiles . | . . . . . . Parts Fried 3 | . . . . . 3 Impact Corruptions 5 | . . . . . 5 Robots Melted . | . . . . . . Combat Hostiles . | . . . . . . Parts Melted 2 | . . 1 1 . . Heat Transferred 851 | . . 333 518 . . Parts Sabotaged . | . . . . . . Parts Stolen . | . . . . . . Parts Stripped . | . . . . . . Power Chain Reactions . | . . . . . . Alert | -11 -10 -9 -8 -7 -7 ------- Run | Yrd Mat Mat Mat Fac Low Peak Influence 511 | . 170 362 511 171 . Initial 156 | . . 71 68 156 . Average 237 | . 82 206 320 157 . Maximum Alert Level 2 | . . 1 2 . . Low Security (%) 45 | 100 100 50 13 100 . Level 1 48 | . . 49 75 . . Level 2 6 | . . . 11 . . Level 3 . | . . . . . . Level 4 . | . . . . . . Level 5 . | . . . . . . High Security . | . . . . . . Max Security . | . . . . . . Squads Dispatched 9 | . 2 1 6 . . Investigation 2 | . 1 . 1 . . Extermination . | . . . . . . Reinforcement 4 | . 1 1 2 . . Assault . | . . . . . . Garrison 3 | . . . 3 . . Intercept . | . . . . . . Searches Triggered . | . . . . . . Construction Impeded . | . . . . . . Haulers Reinforced . | . . . . . . Active Scanning Responses . | . . . . . . Cargo Convoy Interrupts . | . . . . . . Stealth | -11 -10 -9 -8 -7 -7 --------- Run | Yrd Mat Mat Mat Fac Low Distress Signals 2 | . . . 2 . . Communications Jammed . | . . . . . . Distress Signals . | . . . . . . Times Spotted 80 | . 6 11 31 1 31 Peak Tracking Total 7 | . 2 4 7 1 7 Tactical Retreats 14 | . . . 2 1 11 Traps | -11 -10 -9 -8 -7 -7 ------- Run | Yrd Mat Mat Mat Fac Low Traps Triggered 2 | . . . 2 . . Indirectly . | . . . . . . Trap Hack Attempts . | . . . . . . Triggered . | . . . . . . Disarmed . | . . . . . . Reprogrammed . | . . . . . . Reused . | . . . . . . Traps Extracted . | . . . . . . Installed . | . . . . . . Triggered 1 | . . . . . 1 Machines | -11 -10 -9 -8 -7 -7 ---------- Run | Yrd Mat Mat Mat Fac Low Machines Disabled . | . . . . . . Max in Single Turn . | . . . . . . Machines Repaired . | . . . . . . Machines Dismantled . | . . . . . . Machines Sabotaged . | . . . . . . Overloaded Fab Kills . | . . . . . . Hacking | -11 -10 -9 -8 -7 -7 --------- Run | Yrd Mat Mat Mat Fac Low Machines Accessed 11 | . 2 5 3 1 . Terminals 9 | . 2 3 3 1 . Fabricators . | . . . . . . Repair Stations 1 | . . 1 . . . Recycling Units 1 | . . 1 . . . Scanalyzers . | . . . . . . Garrison Access . | . . . . . . Total Hacks 27 | . 6 12 8 1 . Successful 10 | . 1 6 3 . . Failed 17 | . 5 6 5 1 . Catastrophic 9 | . 3 1 4 1 . Database Lockouts . | . . . . . . Manual 25 | . 6 10 8 1 . Terminals 24 | . 6 9 8 1 . Fabricators . | . . . . . . Repair Stations 2 | . . 2 . . . Recycling Units 1 | . . 1 . . . Scanalyzers . | . . . . . . Garrison Access . | . . . . . . Terminal Hacks 7 | . 1 3 3 . . Part Schematic 1 | . . . 1 . . Level Access Points 1 | . . . 1 . . Branch Access Points 1 | . . 1 . . . Terminal Index 3 | . 1 1 1 . . Repair Station Index 1 | . . 1 . . . Fabricator Hacks . | . . . . . . Repair Station Hacks 1 | . . 1 . . . Scan Component 1 | . . 1 . . . Recycling Unit Hacks . | . . . . . . Scanalyzer . | . . . . . . Garrison Access Hacks . | . . . . . . Unauthorized Hacks 2 | . . 2 . . . Terminals 1 | . . 1 . . . Assimilate 1 | . . 1 . . . Fabricators . | . . . . . . Repair Stations . | . . . . . . Recycling Units 1 | . . 1 . . . Reject 1 | . . 1 . . . Scanalyzers . | . . . . . . Garrison Access . | . . . . . . Data Cores Recovered . | . . . . . . Used . | . . . . . . Hacking Detections 11 | . 2 5 3 1 . Full Trace Events 1 | . 1 . . . . Feedback Events . | . . . . . . Feedback Blocked . | . . . . . . Robot Schematics Acquired . | . . . . . . Robots Built . | . . . . . . Authchips . | . . . . . . Time . | . . . . . . Total Robot Build Rating . | . . . . . . Part Schematics Acquired 1 | . . . 1 . . Parts Built . | . . . . . . Authchips . | . . . . . . Time . | . . . . . . Total Part Build Rating . | . . . . . . Parts Repaired . | . . . . . . Time . | . . . . . . Parts Recycled . | . . . . . . Recycled Matter . | . . . . . . Retrieved Matter . | . . . . . . Retrieved Components . | . . . . . . Parts Scanalyzed . | . . . . . . Part Schematics Acquired . | . . . . . . Parts Damaged . | . . . . . . Bothacking | -11 -10 -9 -8 -7 -7 ------------ Run | Yrd Mat Mat Mat Fac Low Used RIF Installer . | . . . . . . Robots Hacked . | . . . . . . Non-combat . | . . . . . . Combat . | . . . . . . Robot Hacks Applied . | . . . . . . Relay Couplers Released . | . . . . . . Fabnet Peak Effective % . | . . . . . . Robots Rewired . | . . . . . . Allies Hacked . | . . . . . . Hacks Repelled . | . . . . . . Allies | -11 -10 -9 -8 -7 -7 -------- Run | Yrd Mat Mat Mat Fac Low Total Allies . | . . . . . . Largest Group . | . . . . . . Highest-Rated Group . | . . . . . . Highest-Rated Ally . | . . . . . . Total Orders . | . . . . . . Ally Attacks . | . . . . . . Total Damage . | . . . . . . Kills . | . . . . . . Allies Corrupted . | . . . . . . Allies Melted . | . . . . . . Intel | -11 -10 -9 -8 -7 -7 ------- Run | Yrd Mat Mat Mat Fac Low Robot Analysis Total . | . . . . . . Derelict Logs Recovered 1 | . . . . . 1 Drone Launches . | . . . . . . Drone Recoveries . | . . . . . . Exploration | -11 -10 -9 -8 -7 -7 ------------- Run | Yrd Mat Mat Mat Fac Low Turns Passed 4951 | 60 247 403 1020 256 2965 Spaces Moved 2022 | 40 144 241 520 124 953 Core 58 | 6 . . 46 . 6 Treads 206 | . . . . . 206 Legs 1758 | 34 144 241 474 124 741 Wheels . | . . . . . . Hover . | . . . . . . Flight . | . . . . . . Fastest Speed 50 | 50 120 120 120 122 50 Average Speed 134 | 109 120 120 154 122 131 Slowest Speed 300 | 120 120 120 200 123 300 Overloaded Moves . | . . . . . . Propulsion Burnouts . | . . . . . . Robots Hopped . | . . . . . . Cave-ins Triggered . | . . . . . . Exploration Rate (%) 30 | 4 24 27 42 3 83 Regions Visited 5 Branch Regions 1 Pre-discovered Areas . | . . . . . . Known Exits Taken 1 | . . . 1 . . Unknown Exits Taken 4 | 1 1 1 . 1 . Scrap Searched 5 | . . . . . 5 Spaces Dug 1 | . . . . . 1 Terrain Destroyed 88 | . . . 85 . 3 Melee 1 | . . . . . 1 Projectile 2 | . . . . . 2 AOE 85 | . . . 85 . . Terrain Rammed . | . . . . . . Walls Destroyed . | . . . . . . Machines Disabled . | . . . . . . Actions | -11 -10 -9 -8 -7 -7 --------- Run | Yrd Mat Mat Mat Fac Low Total 4011 | 55 192 320 654 231 2559 Wait 1694 | . 15 33 43 85 1518 Move 2017 | 39 143 240 519 123 953 Hop . | . . . . . . Pick Up 43 | 11 7 7 10 7 1 Fast Attach 20 | 1 1 . 5 3 10 Attach 20 | 4 2 2 10 1 1 Detach . | . . . . . . Swap 22 | . 3 9 4 3 3 Drop 30 | . 6 10 4 9 1 Fire 74 | . 15 19 36 . 4 Melee 90 | . . . 22 . 68 Ram . | . . . . . . Kick 1 | . . . 1 . . Crush . | . . . . . . Escape Stasis . | . . . . . . Rewire . | . . . . . . Trap . | . . . . . . Miscellaneous . | . . . . . . Route ------- -11/Scrapyard -10/Materials -9/Materials (discovered 4 exits: *Mat / *Min / *Sto x2) -8/Materials (discovered 3 exits: *Fac x3) -7/Factory -7/Lower Caves (discovered 1 exit: *Low) History --------- Turn | Location | Event 4 | -11/Scrapyard | Discovered new exit (range 16) 61 | -11/Scrapyard | Entered Materials 300 | -10/Materials | Discovered new exit (range 6) 308 | -10/Materials | Entered another Materials area 308 | -9/Materials | Evolved 2 slots: Propulsion x2 548 | -9/Materials | Discovered new exit (range 9) 575 | -9/Materials | Identified exit to Mines 575 | -9/Materials | Identified exit to Storage 616 | -9/Materials | Discovered new exit (range 15) 660 | -9/Materials | Build established: Mutant 711 | -9/Materials | Entered another Materials area 711 | -8/Materials | Evolved 2 slots: Power x1, Utility x1 913 | -8/Materials | Garrison activated, responded to threat 921 | -8/Materials | Discovered new exit (range 10) 953 | -8/Materials | Lost 3 parts (1p1n1w) 1054 | -8/Materials | Lost 3 parts (1p1n1w) 1095 | -8/Materials | Core integrity fell below 50% 1119 | -8/Materials | Lost 4 parts (3n1w) 1206 | -8/Materials | Identified exit to Factory 1481 | -8/Materials | Core integrity fell below 20% 1493 | -8/Materials | Build established: Hacker-Mutant 1731 | -8/Materials | Entered Factory 1731 | -7/Factory | Evolved 2 slots: Utility x2 1949 | -7/Factory | Discovered new exit (range 10) 1987 | -7/Factory | Entered Lower Caves 2019 | -7/Lower Caves | Build established: Gladiator 2086 | -7/Lower Caves | Identified exit to Lower Caves 2176 | -7/Lower Caves | Encountered a Warlord checkpoint 2304 | -7/Lower Caves | Spotted B-75 Beast 2481 | -7/Lower Caves | Attracted the attention of an 0b10 checkpoint 4475 | -7/Lower Caves | Destroyed B-75 Beast 4501 | -7/Lower Caves | Lost 10 parts (2p4n3u1w) 4759 | -7/Lower Caves | Build established: Mutant 4827 | -7/Lower Caves | Core integrity fell below 50% 4862 | -7/Lower Caves | Attracted the attention of an 0b10 outpost 4921 | -7/Lower Caves | Destroyed 7 combat bots 4944 | -7/Lower Caves | Core integrity fell below 20% 4952 | -7/Lower Caves | Destroyed by S-27 Virus with Autogun Last Messages --------------- 04905_ Acquired 6 matter. 04910_ Mace fries itself beyond repair. 04912_ System corrupted: Matter fused (-9). 04925_ Imp. Medium Treads destroyed. 04929_ System corrupted: Energy discharge (-36). 04929_ Imp. Aluminum Leg destroyed. 04929_ Critical hit (Destroy). 04929_ Lgt. Nuclear Core destroyed. 04936_ Mak. Salvage Targeting Computer destroyed. 04939_ System Shield destroyed. 04942_ S-27 Virus suffers critical hit (Smash). 04942_ Destroyed VTOL Module. 04942_ S-27 Virus system corrupted by crushing effect. 04943_ Magnetic Acceleration Cannon destroyed. 04944_ System corrupted: Heat flow error (+245). 04944_ S-27 Virus IFF system glitched. 04950_ S-27 Virus destroyed. 04951_ S-27 Virus misfires. Map ----- +----------------------------------------------------+ | | | | | | | ?????????????????????????????????????????????????? | | ?????????????????????????????????????????????????? | | ?????????????????????????????????????????????????? | | ?????????????????????????????????????????????????? | | ?????????????????????????????????????????????????? | | ?????????????????????????????????????????????????? | | ?????????????????????????????????????????????????? | | ?????????????????????????????????????????????????? | | ?????????????????????????????????????????????????? | | ?????????????????????????????????????????????????? | | ?????????????????????????????????????????????????? | | ?????????????????????????????????????????????????? | | ?????????????????????????????????????????????????? | | ?????????????????????????????????????????????????? | | ????????????????????????####?????????????????????? | | ????????????????????????# ##????????????????????? | | ???????????????????????## ##???????????????????? | | ??????????############?# #???????????????????? | | ??????????# ### #???????????????????? | | ??????????# ? #???????? > ?????###?? | | ??????#####/####### ####???? ????? #?? | | ??????#*%==[ ## #????? ????? #?? | | ??????#%######## @ #??????? ???? #?? | | ??????#%# """"# ;%* #??###### ???? #?? | | ??????# # # ###### ;#?# ?# ??## #?? | | ??????# + !%/%# #???##s s ##? ??# ### #?? | | ??????# #= #+## #??## #?? #??# #?? | | ??????# #% # #??# #?# #??? ##? | | ??????# #"""# #??## ##?# #???? ## | | ??????# ###### #??## #### ##????# # | | ??????# ???? #?## ## ###??# #? | | ??????###???### #### #?## #?? | | ??????????????##### #?## #### | | ?????????????????# #### | | ????????????????## ### ## | | ???????????????## ## ## ## ##### | | ??????????????## ## ## ##?# | | ?????????###### ### ### ##??# " | | ?????????# ## ### ##### " | | ?????????# ## ## ## " | | ????????## ## ### ### | | ????????# ### ##?# ## ###### #?### | | ????##### #### ##??# #####?????##???? | | ????# ### ####??# #??????????????? | | ????# """" ## ##?????# ##??????????????? | | ????# """" #######??????# #???????????????? | | ????# """" #????????????# #???????????????? | +----------------------------------------------------+ Best States ------------- Heat Dissipation 34 Energy Generation 23 Energy Capacity 405 Matter Stores 300 Matter Capacity 300 Sight Range 16 Terrain Scan Density 10 ECM Strength 2 Armor Coverage 225 Resistance: TH 15 Propulsion Shielding 33 Evasion (%) 55 Recoil Reduction 1 Force Boost 20 Salvage Targeting 8 Offensive Hacking 10 Defensive Hacking 10 Item Schematics ----------------- Imp. Aluminum Leg | -8/Materials | Hacked Robot Schematics ------------------ None Fabricated ------------ Nothing Alien Tech Used ----------------- None Achievements -------------- root@ Challenges ------------ None Game ------ Seed InsulationCommScrap Manual? 0 Play Time 00:49:50 Cumulative 22.3 hours Start 2024.03.22 @ 12:29:53 End 2024.03.22 @ 13:26:04 Sessions 1 Manual Loads 0 Difficulty Rogue Special Mode None Game No. 22 Rogue 22 Adventurer 0 Explorer 0 Win Type - Total 0 Types 0/0/0/0/0/0/0/0/0 Lore% 17 Gallery% 20 Achievement% 19 Wizard Run 0 Options --------- Layout 1 ASCII 0 Keyboard 0 Movement Mouse Keybinds 0 Fullscreen 1 Font 32/SmallcapsGlow Map View 50x40 Zoom Use 0% Tactical HUD 1 Map Filters NONE Filters NONE Steam 1 RUN: 6f1db1e3-0947-4e79-8295-ec67bee60499